Cogmind - Beta 16.1 @@@ ROGUE MODE // 2026.04.08 @ 17:43:27 Player: obl-vn Result: Destroyed by WB-4U5(R) with Subdweller Shrapnel Launcher Performance ------------- Evolutions (0) 0 Regions Visited (3) 600 Robots Destroyed (40) 200 Value Destroyed (940) 940 Prototype IDs (1) 20 Alien Tech Used (0) 0 Bonus (0) 0 TOTAL SCORE: 1760 Bonus ------- None Cogmind --------- Core Integrity 0/250 Matter 290/300 Energy 80/100 System Corruption 0% Temperature Cool (0) Movement Treading (240) Ox1 Location -10/Subcaves Parts ------- > --- POWER (1) -------- (None) > --- PROPULSION (2) --- Light Treads Subdweller Monowheel > --- UTILITY (2) ------ Disposable Heat Sink Large Storage Unit > --- WEAPON (2) ------- Battle Cannon > --- INVENTORY (15) --- Subdweller Power Source Heat Sink High-capacity Storage Unit Huge Storage Unit Large Battery (200) Large Matter Pod (150) Machine Analyzer Sensor Drone Bay (20/20) Subdweller Beam Cannon Assault Rifle Light Assault Rifle Heavy Assault Rifle Battle Rifle Peak State ------------ > --- POWER ------------ Ion Engine > --- PROPULSION ------- Light Treads Light Treads > --- UTILITY ---------- Large Storage Unit Sensor Drone Bay > --- WEAPON ----------- Light EM Pulse Cannon Light EM Pulse Cannon > --- INVENTORY -------- Light Treads Heat Sink High-capacity Storage Unit Huge Storage Unit Large Battery Large Matter Pod Targeting Computer Light EM Pulse Cannon Light EM Pulse Cannon Assault Rifle Light Assault Rifle [Rating: 17] Favorites ----------- Power Ion Engine Engine Ion Engine Propulsion Light Treads Treads Light Treads Wheel Subdweller Monowheel Utility Large Storage Unit Device Disposable Heat Sink Storage Large Storage Unit Processor Targeting Computer Weapon Light EM Pulse Cannon Energy Gun Riot Gun Energy Cannon Light EM Pulse Cannon Ballistic Gun Assault Rifle Ballistic Cannon Battle Cannon Build | -11 -10 -10 -10 ------- Run | Yrd Mat Min Sub Slots Evolved . | . . . . Power . | . . . . Propulsion . | . . . . Utility . | . . . . Weapon . | . . . . Parts Attached 22 | 6 6 2 8 Power 1 | 1 . . . Engine 1 | 1 . . . Core . | . . . . Reactor . | . . . . Propulsion 4 | 2 . . 2 Treads 3 | 2 . . 1 Leg . | . . . . Wheel 1 | . . . 1 Hover . | . . . . Flight . | . . . . Utility 8 | 1 4 1 2 Device 3 | . 1 1 1 Storage 3 | 1 2 . . Processor 2 | . 1 . 1 Hackware . | . . . . Protection . | . . . . Artifact . | . . . . Weapon 9 | 2 2 1 4 Energy Gun 1 | . . . 1 Energy Cannon 4 | . 2 1 1 Ballistic Gun 2 | 2 . . . Ballistic Cannon 2 | . . . 2 Launcher . | . . . . Special Weapon . | . . . . Impact Weapon . | . . . . Slashing Weapon . | . . . . Piercing Weapon . | . . . . Special Melee Weapon . | . . . . Unidentified Prototypes 1 | . . 1 . Parts Lost 10 | . . 1 9 Power 1 | . . . 1 Propulsion 2 | . . . 2 Utility 1 | . . . 1 Weapon 6 | . . 1 5 Highest Loss Streak 3 | . . 1 3 To Critical Strikes . | . . . . Average Backups 11 | 1 6 11 12 Power . | . . . . Propulsion . | . . 1 . Utility 5 | . 3 6 6 Weapon 4 | . 3 3 4 Tool/Special . | . . . . Unused Backups 10 | . . . 10 Power 1 | . . . 1 Propulsion . | . . . . Utility 6 | . . . 6 Weapon 3 | . . . 3 Tool/Special . | . . . . Average Slot Usage (%) 99 | . 99 99 99 Engine 14 | . 14 14 14 Treads 25 | . 28 28 23 Wheel 2 | . . . 3 Device 11 | . 10 13 12 Storage 14 | . 14 14 14 Processor 2 | . 3 . 1 Energy Gun 2 | . . . 4 Energy Cannon 22 | . 20 28 22 Ballistic Gun 1 | . 7 . . Ballistic Cannon 1 | . . . 1 Peak Build Rating 17 | 6 12 17 14 Average Rating 11 | 4 10 12 12 On Entrance 7 | . 6 12 12 Avg Prop Armor Cover (%) 10 | . . . 10 Naked Turns . | . . . . Heaviest Build 47 | 13 34 47 34 Greatest Support 40 | 40 40 40 40 Greatest Overweight (x) 1 | . . 1 1 Average Overweight (x) . | . . . . Largest Inventory Capacity 15 | 8 15 15 15 Average Capacity 14 | 7 12 15 15 Most Carried 15 | 5 11 13 15 Average Carried 11 | . 6 11 12 Final Capacity 15 | 8 15 15 15 Final Carried 13 | . 11 11 13 Class Distribution -------------------- 100% | Mutant Dominant Class ---------------- Mutant | -10/Materials Mutant | -10/Mines Mutant | -10/Subcaves Resources | -11 -10 -10 -10 ----------- Run | Yrd Mat Min Sub Matter Collected 749 | 248 337 25 139 Remotely . | . . . . Salvage Created 1341 | . 563 110 668 Parts 74 | . 32 6 36 Haulers Intercepted 2 | . 2 . . Recyclers Shooed . | . . . . Parts Field Recycled . | . . . . Retrieved Matter . | . . . . Parts Self-Destructed 10 | . . . 10 Prevented 9 | . . . 9 Parts Restored . | . . . . Kills | -11 -10 -10 -10 ------- Run | Yrd Mat Min Sub Combat Hostiles Destroyed 32 | . 11 3 18 Guns 6 | . 3 . 3 Cannons 19 | . 7 2 10 AOE 4 | . 1 1 2 Classes Destroyed 10 | . 7 1 2 Worker 1 | . 1 . . Tunneler 1 | . 1 . . Hauler 2 | . 2 . . Recycler 1 | . . 1 . Operator 1 | . 1 . . Watcher 2 | . 2 . . Swarmer 13 | . 3 3 7 Grunt 10 | . 8 . 2 Sentry 1 | . . . 1 Subdweller 8 | . . . 8 Best Kill Streak 5 | . 5 4 4 Combat Bots Only 4 | . 4 3 4 Max Kills in Single Turn 2 | . 1 1 2 Gunslinging . | . . . . Exploded 2 | . 1 1 2 Melee . | . . . . Uniques/NPCs Destroyed . | . . . . Combat | -11 -10 -10 -10 -------- Run | Yrd Mat Min Sub Hostile Shots Fired 127 | . 34 18 75 Missed 40 | . 15 2 23 Hits 87 | . 19 16 52 Projectile 87 | . 19 16 52 AOE 4 | . . . 4 Damage Taken 1238 | . 228 147 863 Core 309 | . 53 32 224 Absorbed by Shields . | . . . . Core Remaining (%) 100 | 100 . . . Volleys Fired 117 | . 54 11 52 Largest 2 | . 2 2 2 Hottest 112 | . 112 112 112 Shots Fired 180 | . 87 12 81 Gun 52 | . 34 . 18 Cannon 128 | . 53 12 63 Launcher . | . . . . Special . | . . . . Kinetic 50 | . 34 . 16 Thermal . | . . . . Explosive . | . . . . Electromagnetic 130 | . 53 12 65 Robot Hit Streak 24 | . 6 3 24 Robot Miss Streak 5 | . 5 3 2 Penetration Max . | . . . . Secondary Targets . | . . . . Shots Hit Robots 115 | . 50 6 59 Core Hits 51 | . 20 5 26 Critical Kills . | . . . . Critical Parts Destroyed . | . . . . Critical Strikes 2 | . . 2 . Corrupt 2 | . . 2 . Melee Attacks . | . . . . Impact . | . . . . Slashing . | . . . . Piercing . | . . . . Sneak Attacks . | . . . . Combat Hostiles . | . . . . Follow-up Attacks . | . . . . Damage Inflicted 2532 | . 1128 207 1197 Guns 501 | . 223 . 278 Cannons 1782 | . 800 132 850 Explosions 225 | . 85 71 69 Melee . | . . . . Ramming 24 | . 20 4 . Kinetic 365 | . 223 . 142 Thermal 225 | . 85 71 69 Explosive . | . . . . Electromagnetic 1918 | . 800 132 986 Impact . | . . . . Slashing . | . . . . Piercing . | . . . . Highest Corruption . | . . . . Average Corruption . | . . . . Corruption Purged . | . . . . Corruption Blocked . | . . . . Overload Shots . | . . . . Overflow Damage 74 | . 40 . 34 Projectiles 40 | . 40 . . Explosions 34 | . . . 34 Melee . | . . . . Knockbacks 1 | . 1 . . Impact 1 | . 1 . . Kinetic . | . . . . Secondary . | . . . . Self-Inflicted Damage 82 | . 14 29 39 Shots 3 | . 1 1 1 Rammed 6 | . 4 2 . Targets Rammed 8 | . 6 2 . Kicked . | . . . . Crushed 2 | . 2 . . Highest Temperature 203 | . 203 16 4 Average Temperature 34 | . 36 10 2 Received Heat Transfer 210 | . 93 . 117 Siege Activations . | . . . . Martial Activations . | . . . . Shielding Activations . | . . . . Robots Disrupted 1 | . . . 1 Combat Hostiles 1 | . . . 1 Robots Corrupted 4 | . 1 . 3 Combat Hostiles 3 | . . . 3 Parts Fried 12 | . 4 1 7 Impact Corruptions . | . . . . Robots Melted . | . . . . Combat Hostiles . | . . . . Parts Melted 1 | . . . 1 Heat Transferred 300 | . 50 100 150 Parts Sabotaged . | . . . . Parts Stolen . | . . . . Parts Stripped . | . . . . Power Chain Reactions 3 | . 1 1 1 Alert | -11 -10 -10 -10 ------- Run | Yrd Mat Min Sub Maximum Alert Level . | . . . . Low Security (%) 100 | 100 100 100 . Level 1 . | . . . . Level 2 . | . . . . Level 3 . | . . . . Level 4 . | . . . . Level 5 . | . . . . High Security . | . . . . Max Security . | . . . . Peak Influence 112 | . 112 56 . Initial 22 | . . 22 . Average 24 | . 30 12 . Influence Increases 720 | . 359 81 280 Destroy 0b10 Robot/C 480 | . 220 60 200 Destroy 0b10 Robot/NC 40 | . 35 5 . Destroy Leader 88 | . 58 10 20 Successful Hack 23 | . 23 . . Destroy Structure 14 | . 8 6 . Lose Combat Pursuer 75 | . 15 . 60 Influence Decreases 682 | . 301 139 242 Entered New Map 36 | . . 36 . Time Decay 481 | . 226 93 162 Lost Part 90 | . . 10 80 Purge Threat 75 | . 75 . . Squads Dispatched 2 | . 2 . . Investigation 2 | . 2 . . Extermination . | . . . . Reinforcement . | . . . . Assault . | . . . . Garrison . | . . . . Intercept . | . . . . Searches Triggered . | . . . . Construction Impeded . | . . . . Haulers Reinforced . | . . . . Active Scanning Responses . | . . . . Cargo Convoy Interrupts . | . . . . Stealth | -11 -10 -10 -10 --------- Run | Yrd Mat Min Sub Distress Signals 1 | . 1 . . Communications Jammed . | . . . . Distress Signals . | . . . . Times Spotted 42 | . 17 3 22 Peak Tracking Total 6 | . 4 3 6 Tactical Retreats 3 | . 1 . 2 Traps | -11 -10 -10 -10 ------- Run | Yrd Mat Min Sub Traps Triggered 2 | . 2 . . Indirectly . | . . . . Trap Hack Attempts . | . . . . Triggered . | . . . . Disarmed . | . . . . Reprogrammed 6 | . 6 . . Reused . | . . . . Traps Extracted . | . . . . Installed . | . . . . Triggered . | . . . . Machines | -11 -10 -10 -10 ---------- Run | Yrd Mat Min Sub Machines Disabled . | . . . . Max in Single Turn . | . . . . Machines Repaired . | . . . . Machines Dismantled . | . . . . Machines Sabotaged . | . . . . Overloaded Fab Kills . | . . . . Hacking | -11 -10 -10 -10 --------- Run | Yrd Mat Min Sub Machines Accessed 11 | . 9 1 1 Terminals 8 | . 8 . . Fabricators . | . . . . Repair Stations . | . . . . Recycling Units 1 | . 1 . . Scanalyzers . | . . . . Garrison Access . | . . . . Total Hacks 25 | . 20 1 4 Successful 17 | . 12 1 4 Failed 7 | . 7 . . Catastrophic 2 | . 2 . . Database Lockouts 1 | . 1 . . Manual 13 | . 13 . . Terminals 18 | . 18 . . Fabricators . | . . . . Repair Stations . | . . . . Recycling Units 2 | . 2 . . Scanalyzers . | . . . . Garrison Access . | . . . . Terminal Hacks 13 | . 8 1 4 Record 4 | . . . 4 Robot Analysis 2 | . 2 . . Open Door 1 | . . 1 . Branch Access Points 1 | . 1 . . Unreport Threat 1 | . 1 . . Locate Traps 1 | . 1 . . Reprogram Traps 1 | . 1 . . Zone Layout 2 | . 2 . . Fabricator Hacks . | . . . . Repair Station Hacks . | . . . . Recycling Unit Hacks 1 | . 1 . . Retrieve Components 1 | . 1 . . Scanalyzer . | . . . . Garrison Access Hacks . | . . . . Unauthorized Hacks 3 | . 3 . . Terminals 3 | . 3 . . Botnet 3 | . 3 . . Fabricators . | . . . . Repair Stations . | . . . . Recycling Units . | . . . . Scanalyzers . | . . . . Garrison Access . | . . . . Data Cores Recovered 1 | . 1 . . Used . | . . . . Hacking Detections 9 | . 9 . . Full Trace Events . | . . . . Feedback Events . | . . . . Feedback Blocked . | . . . . Robot Schematics Acquired . | . . . . Robots Built . | . . . . Authchips . | . . . . Time . | . . . . Total Robot Build Rating . | . . . . Part Schematics Acquired . | . . . . Parts Built . | . . . . Authchips . | . . . . Time . | . . . . Total Part Build Rating . | . . . . Part Studies Acquired . | . . . . Parts Repaired . | . . . . Time . | . . . . Parts Recycled . | . . . . Recycled Matter . | . . . . Retrieved Matter . | . . . . Retrieved Components . | . . . . Parts Scanalyzed . | . . . . Part Schematics Acquired . | . . . . Parts Damaged . | . . . . Bothacking | -11 -10 -10 -10 ------------ Run | Yrd Mat Min Sub Used RIF Installer . | . . . . Robots Hacked . | . . . . Non-combat . | . . . . Combat . | . . . . Robot Hacks Applied . | . . . . Relay Couplers Released . | . . . . Fabnet Peak Effective % . | . . . . Robots Rewired . | . . . . Allies Hacked . | . . . . Hacks Repelled . | . . . . Allies | -11 -10 -10 -10 -------- Run | Yrd Mat Min Sub Total Allies . | . . . . Largest Group . | . . . . Highest-Rated Group . | . . . . Highest-Rated Ally . | . . . . Total Orders . | . . . . Ally Attacks . | . . . . Total Damage . | . . . . Kills . | . . . . Allies Corrupted . | . . . . Allies Melted . | . . . . Intel | -11 -10 -10 -10 ------- Run | Yrd Mat Min Sub Active Infowar (turns) 252 | . 252 . . Optics 252 | . 252 . . Robot Analysis Total 2 | . 2 . . Derelict Logs Recovered 2 | . . 1 1 Drone Launches . | . . . . Drone Recoveries . | . . . . Exploration | -11 -10 -10 -10 ------------- Run | Yrd Mat Min Sub Turns Passed 4406 | 68 1094 365 2879 Spaces Moved 2327 | 51 557 180 1539 Core 26 | 26 . . . Treads 1811 | 25 557 180 1049 Legs . | . . . . Wheels 490 | . . . 490 Hover . | . . . . Flight . | . . . . Fastest Speed 50 | 50 160 160 120 Average Speed 152 | 103 160 160 151 Slowest Speed 240 | 160 160 240 240 Overloaded Moves . | . . . . Propulsion Burnouts . | . . . . Robots Hopped . | . . . . Potential Cave-ins . | . . . . Cave-ins Triggered . | . . . . Exploration Rate (%) 52 | 4 89 35 80 Regions Visited 3 Branch Regions 2 Pre-discovered Areas 1 | . . . 1 Known Exits Taken 1 | . 1 . . Unknown Exits Taken 2 | 1 . 1 . Scrap Searched 6 | . . . 6 Spaces Dug . | . . . . Terrain Destroyed 16 | . 6 6 4 Melee . | . . . . Projectile . | . . . . AOE 16 | . 6 6 4 Terrain Rammed . | . . . . Walls Destroyed . | . . . . Machines Disabled . | . . . . Actions | -11 -10 -10 -10 --------- Run | Yrd Mat Min Sub Total 2991 | 66 667 244 2014 Wait 475 | 5 26 45 399 Move 2324 | 50 556 179 1539 Hop . | . . . . Pick Up 33 | 5 15 2 11 Fast Attach 1 | 1 . . . Attach 17 | 5 1 3 8 Detach 1 | . . 1 . Swap 7 | . 7 . . Drop 5 | . 2 1 2 Fire 117 | . 54 11 52 Melee . | . . . . Ram . | . . . . Kick . | . . . . Crush 8 | . 6 2 . Escape Stasis . | . . . . Rewire 3 | . . . 3 Trap . | . . . . Miscellaneous . | . . . . Route ------- -11/Scrapyard -10/Materials (discovered 4 exits: [*Mat x2] / *Min / *Sub) -10/Mines -10/Subcaves (discovered 3 exits: [*Mat x2] / [*Rec]) History --------- Turn | Location | Event 12 | -11/Scrapyard | Discovered new exit (range 15) 69 | -11/Scrapyard | Entered Materials 70 | -10/Materials | Met a group of wandering Federalists 76 | -10/Materials | Identified exit to Mines 283 | -10/Materials | Discovered new exit (range 12) 333 | -10/Materials | Build established: Mutant 377 | -10/Materials | Discovered new exit (range 7) 654 | -10/Materials | Central database locked down 1059 | -10/Materials | Discovered new exit (range 5) 1163 | -10/Materials | Entered Mines 1180 | -10/Mines | Found the Drone Emporium 1185 | -10/Mines | Learned Materials stockpile data 1189 | -10/Mines | Found Prototype Device 1190 | -10/Mines | Identified Sensor Drone Bay 1510 | -10/Mines | Discovered new exit (range 12) 1528 | -10/Mines | Entered Subcaves 1529 | -10/Subcaves | Approached by a straggling Scientist 1787 | -10/Subcaves | Discovered new exit (range 14) 1825 | -10/Subcaves | Disturbed a concealed Subdweller 3453 | -10/Subcaves | Discovered new exit (range 12) 3528 | -10/Subcaves | Discovered new exit (range 16) 3537 | -10/Subcaves | Core integrity fell below 50% 3573 | -10/Subcaves | Lost 3 parts (2n1w) 4123 | -10/Subcaves | Visited Clippyterm 4127 | -10/Subcaves | Learned Factory fabricator intel 4374 | -10/Subcaves | Visited 4L-MR0's lab 4404 | -10/Subcaves | Core integrity fell below 20% 4407 | -10/Subcaves | Destroyed by WB-4U5(R) with Subdweller Shrapnel Launcher Last Messages --------------- 04322_ Sub. Monowheel shoots sparks and powers down. 04340_ Searching scrap... 04340_ Found Battle Cannon. 04340_ Found Sub. Machine Gun. 04340_ Found 37 Matter. 04341_ Acquired 25 matter. 04342_ Searching scrap... 04342_ Found Sub. Optics. 04342_ Found 39 Matter. 04349_ Acquired Battle Cannon. 04394_ XU-QCI(R) IFF system glitched. 04394_ XU-QCI(R) destroyed. 04397_ OY-41B(R) destroyed. 04400_ Acquired 39 matter. 04401_ Machine disabled. 04401_ 4L-MR0's Prototype Logs disabled. 04403_ Battle Cannon destroyed. 04405_ Ion Engine destroyed. 04405_ Riot Gun destroyed. Map ----- +----------------------------------------------------+ | ?????????????????????????????????? | | ?????????????????????????????????? | | ?????????????????????????????????? | | ?????????????????????????????????? | | ?????????????????????????????????? | | ?????????????????????????????????? | | ?????????????????????????????????? | | ?????????????????????????????????? | | ?????????????????????????????????? | | ?????????????????????????????????? | | ?????????????????????????????????? | | ?????????????????????????????????? | | ?????????????????????????????????? | | ?????????????????????????????????? | | ?????????????????????????????????? | | ????????????????? #????????????? | | ????????????????? ####?????????? | | ????????????????? ??????????? | | ????????????????? ??????????? | | ????????????????? ???????????? | | ???????########?? ???????????? | | ??????? #?? #???????????? | | ???????? #?? ##??????????? | | ???????? ##? #??????????? | | ????????#% ### ##?????????? | | ????????#@ %! ## ##?#####??? | | ????????# # [ ^## # #?# #### | | ????????] ## <# ## #??# # | | ??????? #### ## ## #??# | | ??????" #?# #" # #??## | | ??????" #?# # #??# | | ?????# R #?# # #### ### | | ?????? #?# #"" ## ##?? | | ?????##/ ## ###" #??? | | ??????""##?# "?# ## ##??? | | ?????? =???# ""?## ## ##???? | | ??????##??? "##??# ####????? | | ???????????##?# ##???????? | | ??????????????# ###????????? | | ??????????????# ##??????????? | | ??????????????# ##???????????? | | ??????????????## ????????????? | | ???????????????# ????????????? | | ??????????????# ????????????? | | ??????????????## ##????????????? | | ???????????????# ??????????????? | | ???????????????# ??????????????? | | ???????????????# ??????????????? | | ???????????????## ??????????????? | | ???????????????? ???????????????? | +----------------------------------------------------+ Best States ------------- Heat Dissipation 39 Coolant Potential 50 Energy Generation 10 Energy Capacity 250 Matter Stores 300 Matter Capacity 300 Sight Range 18 Terrain Scan Density 10 Evasion (%) 50 Targeting Accuracy 5 Recoil Reduction 2 Item Schematics ----------------- None Robot Schematics ------------------ None Fabricated ------------ Nothing Repaired ---------- Nothing Studied --------- None Alien Tech Used ----------------- None Achievements -------------- None Challenges ------------ None Game ------ Seed CoilCoilBotcube Manual? 0 Play Time 00:22:00 Cumulative 112.5 hours Start 2026.04.08 @ 17:20:31 End 2026.04.08 @ 17:43:27 Sessions 1 Manual Loads 0 Difficulty Rogue Special Mode None Game No. 85 Rogue 85 Adventurer 0 Explorer 0 Win Type - Total 1 Types 0/0/0/1/0/0/0/0/0/0 Lore% 45 Gallery% 51 Achievement% 48 Wizard Run 0 Options --------- Layout 2 ASCII 0 Keyboard 0 Movement Mouse Keybinds 0 Fullscreen 1 Font 48/Smallcaps Map View 50x44 Zoom Use 0% Tactical HUD 1 Map Filters NONE Filters NONE Steam 1 RUN: dfd89296-a1b5-4b30-9bc2-3b03b4f5fd36